Cogmind - Beta 10.2 @@@ ROGUE MODE // 2021.12.25 @ 11:03:13 Player: CalmDownMonkey Result: Self-destructed Performance ------------- Evolutions (1) 500 Regions Visited (2) 400 Robots Destroyed (8) 40 Value Destroyed (181) 181 Prototype IDs (0) 0 Alien Tech Used (0) 0 Bonus (200) 200 TOTAL SCORE: 1321 Bonus ------- Pacifist 200 Cogmind --------- Core Integrity 327/400 Matter 245/300 Energy 32/250 System Corruption 0% Temperature Cool (0) Movement Walking (120) Location -9/Materials Parts ------- > --- POWER (1) -------- Ion Engine > --- PROPULSION (3) --- Aluminum Leg Aluminum Leg Improved Aluminum Leg > --- UTILITY (3) ------ Small Storage Unit ECM Suite > --- WEAPON (2) ------- Assault Rifle > --- INVENTORY (6) ---- Light Ion Engine Aluminum Leg Aluminum Leg Aluminum Leg EM Pulse Gun Peak State ------------ > --- POWER ------------ Light Ion Engine > --- PROPULSION ------- Aluminum Leg Aluminum Leg Improved Aluminum Leg > --- UTILITY ---------- Small Storage Unit ECM Suite > --- WEAPON ----------- EM Pulse Gun EM Shotgun > --- INVENTORY -------- Light Ion Engine EM Pulse Gun Assault Rifle [Rating: 10] Favorites ----------- Power Light Ion Engine Engine Light Ion Engine Propulsion Aluminum Leg Leg Aluminum Leg Utility Small Storage Unit Device ECM Suite Storage Small Storage Unit Weapon EM Pulse Gun Energy Gun EM Pulse Gun Ballistic Gun Assault Rifle Build | -11 -10 -9 ------- Run | Scr Mat Mat Slots Evolved 2 | . . 2 Power . | . . . Propulsion 1 | . . 1 Utility 1 | . . 1 Weapon . | . . . Parts Attached 12 | 6 1 5 Power 2 | 1 . 1 Engine 2 | 1 . 1 Core . | . . . Reactor . | . . . Propulsion 4 | 2 . 2 Treads . | . . . Leg 4 | 2 . 2 Wheel . | . . . Hover . | . . . Flight . | . . . Utility 2 | 1 1 . Device 1 | . 1 . Storage 1 | 1 . . Processor . | . . . Hackware . | . . . Protection . | . . . Artifact . | . . . Weapon 4 | 2 . 2 Energy Gun 3 | 2 . 1 Energy Cannon . | . . . Ballistic Gun 1 | . . 1 Ballistic Cannon . | . . . Launcher . | . . . Special Weapon . | . . . Impact Weapon . | . . . Slashing Weapon . | . . . Piercing Weapon . | . . . Special Melee Weapon . | . . . Unidentified Prototypes . | . . . Parts Lost 2 | . . 2 Power . | . . . Propulsion . | . . . Utility . | . . . Weapon 2 | . . 2 Highest Loss Streak 1 | . . 1 Average Slot Usage (%) 88 | . 98 82 Engine 12 | . 14 11 Leg 30 | . 28 32 Device 11 | . 12 11 Storage 12 | . 14 11 Energy Gun 20 | . 28 16 Naked Turns . | . . . Heaviest Build 13 | 11 12 13 Greatest Support 33 | 20 20 33 Greatest Overweight (x) . | . . . Average Overweight (x) . | . . . Largest Inventory Capacity 6 | 6 6 6 Average Capacity 5 | 5 6 6 Most Carried 6 | 2 2 6 Average Carried 3 | 1 2 4 Final Capacity 6 | 6 6 6 Final Carried 5 | 2 2 5 Class Distribution -------------------- 100% | Mutant Dominant Class ---------------- Mutant | -10/Materials Mutant | -9/Materials Resources | -11 -10 -9 ----------- Run | Scr Mat Mat Matter Collected 276 | 181 . 95 Remotely . | . . . Salvage Created 231 | . . 231 Parts 20 | . . 20 Haulers Intercepted . | . . . Recyclers Shooed . | . . . Parts Field Recycled . | . . . Retrieved Matter . | . . . Parts Self-Destructed . | . . . Prevented . | . . . Kills | -11 -10 -9 ------- Run | Scr Mat Mat Combat Hostiles Destroyed 7 | . . 7 Guns 7 | . . 7 Classes Destroyed 3 | . . 3 Watcher 1 | . . 1 Swarmer 4 | . . 4 Grunt 3 | . . 3 Best Kill Streak 5 | . . 5 Combat Bots Only 4 | . . 4 Max Kills in Single Turn 1 | . . 1 Gunslinging . | . . . Exploded . | . . . Melee . | . . . Uniques/NPCs Destroyed . | . . . Combat | -11 -10 -9 -------- Run | Scr Mat Mat Damage Taken 490 | . . 490 Core 73 | . . 73 Absorbed by Shields . | . . . Core Remaining (%) 100 | 100 100 . Volleys Fired 21 | 1 . 20 Largest 2 | 2 . 2 Hottest 85 | 80 . 85 Shots Fired 33 | 2 . 31 Gun 33 | 2 . 31 Cannon . | . . . Launcher . | . . . Special . | . . . Kinetic 7 | . . 7 Thermal . | . . . Explosive . | . . . Electromagnetic 26 | 2 . 24 Robot Hit Streak 9 | 1 . 9 Robot Miss Streak 4 | 1 . 4 Penetration Max . | . . . Secondary Targets 1 | . . 1 Max Gunslinging Chain 1 | . . 1 Shots Hit Robots 25 | 1 . 24 Core Hits 12 | . . 12 Critical Hits . | . . . Critical Kills . | . . . Critical Parts Destroyed . | . . . Melee Attacks . | . . . Impact . | . . . Slashing . | . . . Piercing . | . . . Sneak Attacks . | . . . Combat Hostiles . | . . . Follow-up Attacks . | . . . Damage Inflicted 347 | 13 . 334 Guns 347 | 13 . 334 Cannons . | . . . Explosions . | . . . Melee . | . . . Ramming . | . . . Kinetic 78 | . . 78 Thermal . | . . . Explosive . | . . . Electromagnetic 269 | 13 . 256 Impact . | . . . Slashing . | . . . Piercing . | . . . Highest Corruption . | . . . Average Corruption . | . . . Corruption Purged . | . . . Overload Shots . | . . . Overflow Damage . | . . . Projectiles . | . . . Explosions . | . . . Melee . | . . . Knockbacks . | . . . Impact . | . . . Kinetic . | . . . Secondary . | . . . Self-Inflicted Damage . | . . . Shots . | . . . Rammed . | . . . Targets Rammed . | . . . Kicked . | . . . Crushed . | . . . Highest Temperature 159 | 18 . 159 Average Temperature 76 | 12 . 83 Received Heat Transfer 144 | . . 144 Siege Activations . | . . . Robots Corrupted . | . . . Combat Hostiles . | . . . Parts Fried 1 | . . 1 Impact Corruptions . | . . . Robots Melted . | . . . Combat Hostiles . | . . . Parts Melted . | . . . Heat Transferred . | . . . Parts Sabotaged . | . . . Parts Stolen . | . . . Parts Stripped . | . . . Power Chain Reactions . | . . . Missiles Intercepted . | . . . Alert | -11 -10 -9 ------- Run | Scr Mat Mat Peak Influence 252 | . 15 252 Initial 5 | . . 5 Average 34 | . 5 60 Maximum Alert Level 1 | . . 1 Low Security (%) 96 | 100 100 94 Level 1 3 | . . 5 Level 2 . | . . . Level 3 . | . . . Level 4 . | . . . Level 5 . | . . . High Security . | . . . Max Security . | . . . Squads Dispatched . | . . . Investigation . | . . . Extermination . | . . . Reinforcement . | . . . Assault . | . . . Garrison . | . . . Intercept . | . . . Construction Impeded . | . . . Haulers Reinforced . | . . . Stealth | -11 -10 -9 --------- Run | Scr Mat Mat Distress Signals 2 | . . 2 Communications Jammed . | . . . Distress Signals . | . . . Times Spotted 16 | . 2 14 Peak Tracking Total 7 | . 2 7 Tactical Retreats 3 | . . 3 Traps | -11 -10 -9 ------- Run | Scr Mat Mat Traps Triggered . | . . . Indirectly . | . . . Trap Hack Attempts . | . . . Triggered . | . . . Disarmed . | . . . Reprogrammed . | . . . Reused . | . . . Traps Extracted . | . . . Installed . | . . . Triggered . | . . . Machines | -11 -10 -9 ---------- Run | Scr Mat Mat Machines Disabled 1 | . . 1 Max in Single Turn 1 | . . 1 Machines Sabotaged . | . . . Garrisons Compromised . | . . . Overloaded Fab Kills . | . . . Fab Network Shutdowns . | . . . Hacking | -11 -10 -9 --------- Run | Scr Mat Mat Machines Accessed 1 | . . 1 Terminals 1 | . . 1 Fabricators . | . . . Repair Stations . | . . . Recycling Units . | . . . Scanalyzers . | . . . Garrison Access . | . . . Total Hacks 4 | . . 4 Successful 2 | . . 2 Failed 2 | . . 2 Catastrophic . | . . . Database Lockouts . | . . . Manual . | . . . Terminals 4 | . . 4 Fabricators . | . . . Repair Stations . | . . . Recycling Units . | . . . Scanalyzers . | . . . Garrison Access . | . . . Terminal Hacks 2 | . . 2 Alert Level 1 | . . 1 Locate Traps 1 | . . 1 Fabricator Hacks . | . . . Repair Station Hacks . | . . . Recycling Unit Hacks . | . . . Scanalyzer . | . . . Garrison Access Hacks . | . . . Unauthorized Hacks . | . . . Terminals . | . . . Fabricators . | . . . Repair Stations . | . . . Recycling Units . | . . . Scanalyzers . | . . . Garrison Access . | . . . Data Cores Recovered . | . . . Used . | . . . Hacking Detections 1 | . . 1 Full Trace Events . | . . . Feedback Events . | . . . Feedback Blocked . | . . . Robot Schematics Acquired . | . . . Robots Built . | . . . Matter . | . . . Time . | . . . Total Robot Build Rating . | . . . Part Schematics Acquired . | . . . Parts Built . | . . . Matter . | . . . Time . | . . . Total Part Build Rating . | . . . Parts Repaired . | . . . Time . | . . . Parts Recycled . | . . . Recycled Matter . | . . . Retrieved Matter . | . . . Retrieved Components . | . . . Parts Scanalyzed . | . . . Part Schematics Acquired . | . . . Parts Damaged . | . . . Bothacking | -11 -10 -9 ------------ Run | Scr Mat Mat Used RIF Installer . | . . . Robots Hacked . | . . . Non-combat . | . . . Combat . | . . . Robot Hacks Applied . | . . . Relay Couplers Released . | . . . Robots Rewired . | . . . Allies Hacked . | . . . Hacks Repelled . | . . . Allies | -11 -10 -9 -------- Run | Scr Mat Mat Total Allies . | . . . Largest Group . | . . . Highest-Rated Group . | . . . Highest-Rated Ally . | . . . Total Orders . | . . . Ally Attacks . | . . . Total Damage . | . . . Kills . | . . . Allies Corrupted . | . . . Allies Melted . | . . . Intel | -11 -10 -9 ------- Run | Scr Mat Mat Robot Analysis Total . | . . . Derelict Logs Recovered . | . . . Drone Launches . | . . . Drone Recoveries . | . . . Exploration | -11 -10 -9 ------------- Run | Scr Mat Mat Turns Passed 452 | 55 154 243 Spaces Moved 279 | 38 128 113 Core 6 | 6 . . Treads . | . . . Legs 273 | 32 128 113 Wheels . | . . . Hover . | . . . Flight . | . . . Fastest Speed 50 | 50 120 120 Average Speed 118 | 108 120 120 Slowest Speed 120 | 120 120 120 Overloaded Moves . | . . . Propulsion Burnouts . | . . . Robots Hopped . | . . . Cave-ins Triggered . | . . . Exploration Rate (%) 11 | 3 24 8 Regions Visited 2 Branch Regions . Pre-discovered Areas . | . . . Known Exits Taken . | . . . Unknown Exits Taken 2 | 1 1 . Scrap Searched . | . . . Spaces Dug . | . . . Terrain Destroyed . | . . . Melee . | . . . Projectile . | . . . AOE . | . . . Terrain Rammed . | . . . Walls Destroyed . | . . . Machines Disabled . | . . . Actions | -11 -10 -9 --------- Run | Scr Mat Mat Total 361 | 46 128 187 Wait 46 | . . 46 Move 277 | 37 127 113 Hop . | . . . Pick Up 4 | 2 . 2 Fast Attach 8 | 6 1 1 Attach 1 | . . 1 Detach . | . . . Swap 3 | . . 3 Drop 1 | . . 1 Fire 21 | 1 . 20 Melee . | . . . Ram . | . . . Kick . | . . . Crush . | . . . Escape Stasis . | . . . Rewire . | . . . Trap . | . . . Miscellaneous . | . . . Route ------- -11/Scrapyard -10/Materials (discovered 2 exits: *Mat / [*Min]) -9/Materials History --------- Turn | Location | Event 6 | -11/Scrapyard | Discovered new exit (range 16) 56 | -11/Scrapyard | Entered Materials 119 | -10/Materials | Discovered new exit (range 12) 192 | -10/Materials | Discovered new exit (range 15) 210 | -10/Materials | Entered another Materials area 210 | -9/Materials | Evolved 2 slots: Propulsion x1, Utility x1 308 | -9/Materials | Build established: Mutant 453 | -9/Materials | Self-destructed Last Messages --------------- 00334_ Lgt. Nuclear Core fried. 00334_ G-47 Trooper destroyed. 00336_ G-34 Mercenary destroyed. 00341_ Acquired Aluminum Leg. 00350_ Dropped Lgt. Ion Engine. 00351_ Acquired 48 matter. 00380_ Acquired 47 matter. 00405_ T-07 Excavator is excavating. 00417_ W-16 Scout sends out distress signal. 00422_ S-10 Pest destroyed. 00428_ S-10 Pest misfires. 00432_ K-01 Serf collects debris. 00436_ W-16 Scout destroyed. 00439_ S-10 Pest destroyed. 00442_ Electrolysis Chamber disabled. 00448_ S-10 Pest destroyed. 00448_ R-06 Scavenger collects Flight Unit. 00449_ K-01 Serf collects debris. 00449_ EM Pulse Gun destroyed. 00452_ R-06 Scavenger collects Lgt. Assault Rifle. Map ----- +----------------------------------------------------+ | | | ?????????????????????????????????????????????????? | | ?????????????????????????????????????????????????? | | ?????????????????????????????????????????????????? | | ?????????????????????????????????????????????????? | | ??????????????????????########???????????????????? | | ####################### #???????????????????? | | # # """ #???????????????????? | | # # """ #???????????????????? | | # + """ #???????????????????? | | ######+########## # #???????????????????? | | ??# #????# # #???????????????????? | | ??# """ #????## #########???????????????????? | | ??# """ #?????# # T #???###?????????????? | | ??# """ #?????+ / #??? ?????????????? | | ??# #?????# # #??? ?????????????? | | ??# """ #?????# #########??? ?????????????? | | ??# """ #?????# #??????????? ?????????????? | | ??# """ #?????# #??????????? ?????????????? | | ??# #?????# % ############# #?????????????? | | ??##########?????#*! = + """ """ # #?????????????? | | ?????????????????# =###Y""" """ # ###???????????? | | ?????????????????##!##?#%["" """ # #???????????? | | ??????????????????# #??#* + #???????????? | | ??????????????????# #??# # +???????????? | | ??????????????????# #??#[@ # #???????????? | | ???????????????#### ####k%=!! # #???????????? | | ???????? rY==%= # #???????????? | | ????????????#] ############## #???????????? | | ????????????# *!? #????????????# ???????????? | | ??????????^?+????? ?????????????# ##??????????? | | ??????????^??????? ?????????????? #???????????? | | ????????????????? ?????????????? #???????????? | | ?????????^??????? ?????????????? #???????????? | | ?????????^???????? ?????????????? #???????????? | | ?????????????????? ?????????????? #???????????? | | ?????????????????? ?????????????? #???????????? | | ?????????????????????????????????? ????????????? | | ?????????????????????????????????????????????????? | | ?????????????????????????????????????????????????? | | ?????????????????????????????????????????????????? | | ?????????????????????????????????????????????????? | | ?????????????????????????????????????????????????? | | ?????????????????????????????????????????????????? | | ?????????????????????????????????????????????????? | | ?????????????????????????????????????????????????? | | ?????????????????????????????????????????????????? | | ?????????????????????????????????????????????????? | | ?????????????????????????????????????????????????? | | ?????????????????????????????????????????????????? | +----------------------------------------------------+ Best States ------------- Heat Dissipation 28 Energy Generation 10 Energy Capacity 250 Matter Stores 271 Matter Capacity 300 Sight Range 16 Terrain Scan Density 10 ECM Strength 1 Evasion (%) 40 Item Schematics ----------------- None Robot Schematics ------------------ None Fabricated ------------ Nothing Alien Tech Used ----------------- None Achievements -------------- None Challenges ------------ None Game ------ Seed cunthole Manual? 1 Play Time 00:18:04 Cumulative 8.5 hours Start 2021.12.25 @ 00:30:23 End 2021.12.25 @ 11:03:13 Sessions 4 Manual Loads 0 Difficulty Rogue Special Mode None Game No. 11 Rogue 11 Adventurer 0 Explorer 0 Win Type - Total 0 Types 0/0/0/0/0/0/0/0/0 Lore% 1 Gallery% 11 Achievement% 6 Wizard Run 0 Options --------- ASCII 0 Keyboard 1 Movement Vi Keybinds 0 Fullscreen 0 Font 20/SmallcapsGlow Map View 76x50 Tactical HUD 1 Map Filters NONE Filters NONE Steam 1 RUN: f95e19ce-ccaa-4105-b377-567cf58f2eb0